[Event "Schack-SM 2024: Mastarklassen-elit"]
[Site "Fortnox Arena, Hejaregatan 5, Vaxjo, Sweden"]
[Date "2024.07.04"]
[Round "6.4"]
[White "Akesson, Ralf"]
[Black "Cederstam, Carl"]
[Result "0-1"]
[TimeControl "90 minutes for 40 moves + 30 minutes for the rest of the game + 30 seconds per move from move one."]
[WhiteTitle "GM"]
[BlackTitle "FM"]
[WhiteElo "2360"]
[BlackElo "2278"]

1. d4 {[%clk 01:29:39]} {[%emt 00:01:21]} d5 {[%clk 01:30:51]} {[%emt
00:00:09]} 2. c4 {[%clk 01:29:46]} {[%emt 00:00:24]} c6 {[%clk 01:31:15]}
{[%emt 00:00:06]} 3. Nc3 {[%clk 01:28:44]} {[%emt 00:01:31]} dxc4 {[%clk
01:24:57]} {[%emt 00:06:49]} 4. e4 {[%clk 01:28:44]} {[%emt 00:00:29]} b5
{[%clk 01:25:21]} {[%emt 00:00:07]} 5. a4 {[%clk 01:28:24]} {[%emt 00:00:49]}
b4 {[%clk 01:25:33]} {[%emt 00:00:20]} 6. Nb1 {[%clk 01:25:21]} {[%emt
00:03:33]} Ba6 {[%clk 01:22:41]} {[%emt 00:03:21]} 7. Nf3 {[%clk 01:24:05]}
{[%emt 00:01:45]} Qb6 {[%clk 01:15:53]} {[%emt 00:07:18]} 8. Be3 {[%clk
01:12:17]} {[%emt 00:12:19]} e6 {[%clk 01:08:05]} {[%emt 00:08:18]} 9. d5
{[%clk 01:00:40]} {[%emt 00:12:07]} Qa5 {[%clk 00:56:00]} {[%emt 00:12:34]} 10.
dxe6 {[%clk 00:57:10]} {[%emt 00:04:01]} fxe6 {[%clk 00:56:07]} {[%emt
00:00:24]} 11. Nbd2 {[%clk 00:42:12]} {[%emt 00:15:27]} b3 {[%clk 00:47:48]}
{[%emt 00:08:48]} 12. Qc1 {[%clk 00:36:21]} {[%emt 00:06:22]} Nf6 {[%clk
00:41:21]} {[%emt 00:06:56]} 13. Bxc4 {[%clk 00:36:21]} {[%emt 00:00:30]} Nxe4
{[%clk 00:40:19]} {[%emt 00:01:32]} 14. O-O {[%clk 00:35:41]} {[%emt 00:01:11]}
Nxd2 {[%clk 00:39:53]} {[%emt 00:00:57]} 15. Nxd2 {[%clk 00:28:06]} {[%emt
00:08:04]} Bxc4 {[%clk 00:39:43]} {[%emt 00:00:40]} 16. Nxc4 {[%clk 00:27:18]}
{[%emt 00:01:19]} Qb4 {[%clk 00:33:11]} {[%emt 00:07:01]} 17. Bd2 {[%clk
00:20:27]} {[%emt 00:07:21]} Qb7 {[%clk 00:33:27]} {[%emt 00:00:15]} 18. Qc3
{[%clk 00:19:04]} {[%emt 00:01:54]} Nd7 {[%clk 00:30:27]} {[%emt 00:03:29]} 19.
Rfe1 {[%clk 00:19:16]} {[%emt 00:00:18]} Kf7 {[%clk 00:27:32]} {[%emt
00:03:24]} 20. Na5 {[%clk 00:13:41]} {[%emt 00:06:06]} Qb6 {[%clk 00:26:33]}
{[%emt 00:01:30]} 21. Nxb3 {[%clk 00:13:34]} {[%emt 00:00:36]} Rb8 {[%clk
00:25:15]} {[%emt 00:01:48]} 22. Nd4 {[%clk 00:13:37]} {[%emt 00:00:26]} Bc5
{[%clk 00:19:14]} {[%emt 00:06:32]} 23. Qf3+ {[%clk 00:11:01]} {[%emt
00:03:07]} Nf6 {[%clk 00:18:58]} {[%emt 00:00:44]} 24. Nxe6 {[%clk 00:11:05]}
{[%emt 00:00:28]} Qxb2 {[%clk 00:11:00]} {[%emt 00:08:27]} 25. Nxc5 {[%clk
00:08:20]} {[%emt 00:03:14]} Qxd2 {[%clk 00:11:11]} {[%emt 00:00:20]} 26. Rad1
{[%clk 00:08:41]} {[%emt 00:00:09]} Rhe8 {[%clk 00:09:42]} {[%emt 00:02:00]} 27.
Ne6 {[%clk 00:04:15]} {[%emt 00:04:56]} Rxe6 {[%clk 00:01:47]} {[%emt
00:08:24]} 28. Rxe6 {[%clk 00:04:27]} {[%emt 00:00:18]} Qxd1+ {[%clk 00:02:06]}
{[%emt 00:00:11]} 29. Qxd1 {[%clk 00:04:51]} {[%emt 00:00:05]} Kxe6 {[%clk
00:02:34]} {[%emt 00:00:03]} 30. h3 {[%clk 00:04:56]} {[%emt 00:00:25]} Rb7
{[%clk 00:01:41]} {[%emt 00:01:22]} 31. Qd8 {[%clk 00:04:43]} {[%emt 00:00:44]}
Rd7 {[%clk 00:01:53]} {[%emt 00:00:19]} 32. Qf8 {[%clk 00:04:08]} {[%emt
00:01:04]} Kd5 {[%clk 00:02:07]} {[%emt 00:00:15]} 33. g4 {[%clk 00:04:05]}
{[%emt 00:00:34]} h6 {[%clk 00:01:58]} {[%emt 00:00:39]} 34. h4 {[%clk
00:04:17]} {[%emt 00:00:18]} Kc4 {[%clk 00:01:08]} {[%emt 00:01:21]} 35. g5
{[%clk 00:04:05]} {[%emt 00:00:41]} hxg5 {[%clk 00:01:34]} {[%emt 00:00:05]} 36.
hxg5 {[%clk 00:04:29]} {[%emt 00:00:04]} Nd5 {[%clk 00:01:58]} {[%emt
00:00:06]} 37. Qe8 {[%clk 00:02:06]} {[%emt 00:02:51]} Rc7 {[%clk 00:01:59]}
{[%emt 00:00:31]} 38. f4 {[%clk 00:01:42]} {[%emt 00:00:53]} Kb4 {[%clk
00:01:48]} {[%emt 00:00:43]} 39. Qe4+ {[%clk 00:02:04]} {[%emt 00:00:06]} Ka5
{[%clk 00:02:09]} {[%emt 00:00:10]} 40. f5 {[%clk 00:02:17]} {[%emt 00:00:17]}
Kb6 {[%clk 00:01:11]} {[%emt 00:01:27]} 41. Kh2 {[%clk 00:01:40]} {[%emt
00:01:06]} Kc5 {[%clk 00:24:52]} {[%emt 00:06:51]} 42. Qb1 {[%clk 00:24:48]}
{[%emt 00:07:21]} Kd6 {[%clk 00:22:57]} {[%emt 00:02:25]} 43. Qe1 {[%clk
00:14:41]} {[%emt 00:10:37]} Re7 {[%clk 00:17:33]} {[%emt 00:05:55]} 44. Qg3+
{[%clk 00:13:19]} {[%emt 00:01:52]} Re5 {[%clk 00:14:58]} {[%emt 00:03:05]} 45.
Kh3 {[%clk 00:07:54]} {[%emt 00:05:55]} c5 {[%clk 00:13:36]} {[%emt 00:01:53]}
46. a5 {[%clk 00:07:47]} {[%emt 00:00:37]} c4 {[%clk 00:13:30]} {[%emt
00:00:36]} 47. Qa3+ {[%clk 00:06:55]} {[%emt 00:01:21]} Kc6 {[%clk 00:13:38]}
{[%emt 00:00:21]} 48. Qf8 {[%clk 00:06:30]} {[%emt 00:00:55]} c3 {[%clk
00:05:08]} {[%emt 00:09:01]} 49. Qxg7 {[%clk 00:02:38]} {[%emt 00:04:22]} Re3+
{[%clk 00:03:31]} {[%emt 00:02:08]} 50. Kh4 {[%clk 00:02:55]} {[%emt 00:00:14]}
c2 {[%clk 00:03:47]} {[%emt 00:00:13]} 51. Qb2 {[%clk 00:03:07]} {[%emt
00:00:18]} Rc3 {[%clk 00:03:36]} {[%emt 00:00:41]} 52. Qc1 {[%clk 00:03:32]}
{[%emt 00:00:05]} Rc4+ {[%clk 00:02:48]} {[%emt 00:01:17]} 53. Kh5 {[%clk
00:03:33]} {[%emt 00:00:29]} Nf4+ {[%clk 00:03:12]} {[%emt 00:00:07]} 54. Kh6
{[%clk 00:03:57]} {[%emt 00:00:06]} Nd3 {[%clk 00:03:06]} {[%emt 00:00:37]} 55.
Qh1+ {[%clk 00:04:19]} {[%emt 00:00:08]} Kd6 {[%clk 00:02:44]} {[%emt
00:00:52]} 56. Qh2+ {[%clk 00:01:35]} {[%emt 00:03:14]} Nf4 {[%clk 00:03:07]}
{[%emt 00:00:06]} 57. Qd2+ {[%clk 00:02:00]} {[%emt 00:00:05]} Ke5 {[%clk
00:02:10]} {[%emt 00:01:28]} 58. Qc1 {[%clk 00:01:25]} {[%emt 00:01:05]} Kxf5
{[%clk 00:02:13]} {[%emt 00:00:27]} 59. g6 {[%clk 00:01:50]} {[%emt 00:00:06]}
Rc6 {[%clk 00:01:12]} {[%emt 00:01:30]} 60. Kh7 {[%clk 00:02:14]} {[%emt
00:00:07]} Nxg6 {[%clk 00:01:11]} {[%emt 00:00:32]} 61. Qf1+ {[%clk 00:01:58]}
{[%emt 00:00:45]} Ke5 {[%clk 00:01:28]} {[%emt 00:00:11]} 62. Qb5+ {[%clk
00:00:50]} {[%emt 00:01:40]} Kd6 {[%clk 00:01:54]} {[%emt 00:00:04]} 63. Qb8+
{[%clk 00:00:43]} {[%emt 00:00:37]} Rc7+ {[%clk 00:02:17]} {[%emt 00:00:07]} 64.
Kxg6 {[%clk 00:00:35]} {[%emt 00:00:38]} c1=Q {[%clk 00:02:40]} {[%emt
00:00:07]} 65. Qf8+ {[%clk 00:00:32]} {[%emt 00:00:33]} Kc6 {[%clk 00:02:58]}
{[%emt 00:00:11]} 66. Qe8+ {[%clk 00:00:36]} {[%emt 00:00:27]} Kc5 {[%clk
00:03:03]} {[%emt 00:00:24]} 0-1

[Event "Schack-SM 2024: Mastarklassen-elit"]
[Site "Fortnox Arena, Hejaregatan 5, Vaxjo, Sweden"]
[Date "2024.07.03"]
[Round "5.1"]
[White "Wiedenkeller, Michael"]
[Black "Thorn, Eric"]
[Result "0-1"]
[TimeControl "90 minutes for 40 moves + 30 minutes for the rest of the game + 30 seconds per move from move one."]
[WhiteTitle "IM"]
[BlackTitle "FM"]
[WhiteElo "2417"]
[BlackElo "2359"]

1. d4 {[%clk 01:30:21]} {[%emt 00:00:39]} Nf6 {[%clk 01:30:54]} {[%emt
00:00:06]} 2. Bg5 {[%clk 01:30:26]} {[%emt 00:00:24]} d5 {[%clk 01:31:16]}
{[%emt 00:00:08]} 3. Bxf6 {[%clk 01:30:34]} {[%emt 00:00:23]} gxf6 {[%clk
01:31:25]} {[%emt 00:00:21]} 4. e3 {[%clk 01:30:44]} {[%emt 00:00:19]} c5
{[%clk 01:31:35]} {[%emt 00:00:21]} 5. dxc5 {[%clk 01:30:41]} {[%emt 00:00:33]}
Nc6 {[%clk 01:31:43]} {[%emt 00:00:22]} 6. Bb5 {[%clk 01:24:23]} {[%emt
00:06:47]} e6 {[%clk 01:31:42]} {[%emt 00:00:31]} 7. c4 {[%clk 01:18:08]}
{[%emt 00:06:45]} dxc4 {[%clk 01:30:39]} {[%emt 00:01:33]} 8. Nd2 {[%clk
01:13:47]} {[%emt 00:04:51]} Bd7 {[%clk 01:26:51]} {[%emt 00:04:18]} 9. Ngf3
{[%clk 01:09:05]} {[%emt 00:05:13]} Bxc5 {[%clk 01:19:24]} {[%emt 00:07:58]} 10.
O-O {[%clk 01:05:54]} {[%emt 00:03:39]} Rc8 {[%clk 01:08:54]} {[%emt 00:10:59]}
11. Rc1 {[%clk 00:58:22]} {[%emt 00:08:02]} a6 {[%clk 00:46:28]} {[%emt
00:22:57]} 12. Bxc4 {[%clk 00:56:01]} {[%emt 00:02:50]} Be7 {[%clk 00:46:05]}
{[%emt 00:00:54]} 13. Ne4 {[%clk 00:38:29]} {[%emt 00:18:02]} Qc7 {[%clk
00:44:43]} {[%emt 00:01:52]} 14. Qd2 {[%clk 00:36:57]} {[%emt 00:02:02]} Rg8
{[%clk 00:42:02]} {[%emt 00:03:10]} 15. Be2 {[%clk 00:30:04]} {[%emt 00:07:24]}
Rd8 {[%clk 00:32:45]} {[%emt 00:09:48]} 16. Qc3 {[%clk 00:25:29]} {[%emt
00:05:05]} e5 {[%clk 00:25:21]} {[%emt 00:07:54]} 17. Rfd1 {[%clk 00:23:37]}
{[%emt 00:02:21]} Bg4 {[%clk 00:23:02]} {[%emt 00:02:50]} 18. Rxd8+ {[%clk
00:20:49]} {[%emt 00:03:18]} Qxd8 {[%clk 00:23:20]} {[%emt 00:00:11]} 19. Rd1
{[%clk 00:18:40]} {[%emt 00:02:39]} Qc8 {[%clk 00:16:24]} {[%emt 00:07:27]} 20.
Ng3 {[%clk 00:12:05]} {[%emt 00:07:05]} h5 {[%clk 00:15:53]} {[%emt 00:00:59]}
21. e4 {[%clk 00:09:17]} {[%emt 00:03:19]} Kf8 {[%clk 00:10:14]} {[%emt
00:06:09]} 22. Qe3 {[%clk 00:08:22]} {[%emt 00:01:24]} Rg7 {[%clk 00:07:21]}
{[%emt 00:03:23]} 23. Kh1 {[%clk 00:07:04]} {[%emt 00:01:48]} h4 {[%clk
00:01:38]} {[%emt 00:06:12]} 24. Nxh4 {[%clk 00:06:33]} {[%emt 00:01:00]} Nd4
{[%clk 00:00:55]} {[%emt 00:01:15]} 25. Bxg4 {[%clk 00:04:35]} {[%emt
00:02:28]} Qxg4 {[%clk 00:00:53]} {[%emt 00:00:31]} 26. Nf3 {[%clk 00:04:54]}
{[%emt 00:00:11]} Bc5 {[%clk 00:00:51]} {[%emt 00:00:32]} 27. Rc1 {[%clk
00:03:58]} {[%emt 00:01:27]} b6 {[%clk 00:00:58]} {[%emt 00:00:22]} 28. b4
{[%clk 00:02:12]} {[%emt 00:02:16]} Nf5 {[%clk 00:01:15]} {[%emt 00:00:15]} 29.
Qd2 {[%clk 00:02:00]} {[%emt 00:00:40]} Nxg3+ {[%clk 00:01:02]} {[%emt
00:00:44]} 30. hxg3 {[%clk 00:01:15]} {[%emt 00:01:15]} Rh7+ {[%clk 00:00:47]}
{[%emt 00:00:45]} 31. Kg1 {[%clk 00:01:23]} {[%emt 00:00:21]} Bd4 {[%clk
00:00:41]} {[%emt 00:00:37]} 32. Nxd4 {[%clk 00:01:16]} {[%emt 00:00:37]} exd4
{[%clk 00:00:41]} {[%emt 00:00:29]} 33. Qxd4 {[%clk 00:01:02]} {[%emt
00:00:45]} Qh5 {[%clk 00:00:52]} {[%emt 00:00:19]} 34. Rc8+ {[%clk 00:00:59]}
{[%emt 00:00:32]} Kg7 {[%clk 00:01:18]} {[%emt 00:00:04]} 35. f3 {[%clk
00:00:48]} {[%emt 00:00:40]} Qh1+ {[%clk 00:01:33]} {[%emt 00:00:15]} 36. Kf2
{[%clk 00:01:10]} {[%emt 00:00:09]} Rh2 {[%clk 00:01:58]} {[%emt 00:00:04]} 37.
Ke3 {[%clk 00:00:48]} {[%emt 00:00:53]} Rxg2 {[%clk 00:01:15]} {[%emt
00:01:13]} 38. Qd3 {[%clk 00:00:32]} {[%emt 00:00:47]} Qh6+ {[%clk 00:01:27]}
{[%emt 00:00:18]} 0-1

[Event "Schack-SM 2024: Mastarklassen-elit"]
[Site "Fortnox Arena, Hejaregatan 5, Vaxjo, Sweden"]
[Date "2024.07.03"]
[Round "5.2"]
[White "Lundin, Jan"]
[Black "Crevatin, Leo"]
[Result "0-1"]
[TimeControl "90 minutes for 40 moves + 30 minutes for the rest of the game + 30 seconds per move from move one."]
[WhiteTitle "FM"]
[BlackTitle "FM"]
[WhiteElo "2246"]
[BlackElo "2235"]

1. e4 {[%clk 01:30:54]} {[%emt 00:00:06]} c6 {[%clk 01:30:33]} {[%emt
00:00:28]} 2. d4 {[%clk 01:31:05]} {[%emt 00:00:20]} d5 {[%clk 01:31:01]}
{[%emt 00:00:03]} 3. exd5 {[%clk 01:31:17]} {[%emt 00:00:18]} cxd5 {[%clk
01:31:27]} {[%emt 00:00:03]} 4. c4 {[%clk 01:31:20]} {[%emt 00:00:28]} Nf6
{[%clk 01:31:30]} {[%emt 00:00:25]} 5. Nc3 {[%clk 01:31:40]} {[%emt 00:00:12]}
Nc6 {[%clk 01:31:54]} {[%emt 00:00:06]} 6. h3 {[%clk 01:31:43]} {[%emt
00:00:27]} g6 {[%clk 01:28:48]} {[%emt 00:03:34]} 7. c5 {[%clk 01:31:48]}
{[%emt 00:00:26]} Bg7 {[%clk 01:27:52]} {[%emt 00:01:28]} 8. Bb5 {[%clk
01:32:03]} {[%emt 00:00:13]} Nd7 {[%clk 01:23:23]} {[%emt 00:05:01]} 9. Nge2
{[%clk 01:24:05]} {[%emt 00:08:27]} O-O {[%clk 01:13:58]} {[%emt 00:09:56]} 10.
O-O {[%clk 01:19:27]} {[%emt 00:05:07]} e5 {[%clk 01:07:33]} {[%emt 00:06:55]}
11. Be3 {[%clk 01:08:15]} {[%emt 00:11:42]} Nxc5 {[%clk 01:01:12]} {[%emt
00:06:53]} 12. dxe5 {[%clk 01:03:19]} {[%emt 00:05:25]} d4 {[%clk 00:56:09]}
{[%emt 00:05:33]} 13. Nxd4 {[%clk 00:58:14]} {[%emt 00:05:35]} Nxd4 {[%clk
00:54:13]} {[%emt 00:02:27]} 14. Bxd4 {[%clk 00:50:26]} {[%emt 00:08:17]} Ne6
{[%clk 00:54:24]} {[%emt 00:00:19]} 15. Be3 {[%clk 00:50:41]} {[%emt 00:00:15]}
Bxe5 {[%clk 00:53:52]} {[%emt 00:01:01]} 16. Qa4 {[%clk 00:50:36]} {[%emt
00:00:37]} a6 {[%clk 00:41:39]} {[%emt 00:12:42]} 17. Rad1 {[%clk 00:42:01]}
{[%emt 00:09:04]} axb5 {[%clk 00:34:30]} {[%emt 00:07:41]} 18. Qxa8 {[%clk
00:41:01]} {[%emt 00:01:29]} Qh4 {[%clk 00:34:49]} {[%emt 00:00:11]} 19. Nd5
{[%clk 00:37:43]} {[%emt 00:03:49]} Nc7 {[%clk 00:20:40]} {[%emt 00:14:39]} 20.
Nxc7 {[%clk 00:30:04]} {[%emt 00:08:09]} Bxh3 {[%clk 00:18:50]} {[%emt
00:02:19]} 21. Qxf8+ {[%clk 00:00:58]} {[%emt 00:29:37]} Kxf8 {[%clk 00:19:18]}
{[%emt 00:00:02]} 22. Bc5+ {[%clk 00:00:58]} {[%emt 00:00:30]} Kg8 {[%clk
00:18:13]} {[%emt 00:01:35]} 23. Rfe1 {[%clk 00:01:11]} {[%emt 00:00:16]} Bxg2
{[%clk 00:10:01]} {[%emt 00:08:44]} 24. Kxg2 {[%clk 00:01:30]} {[%emt
00:00:11]} Qg4+ {[%clk 00:10:24]} {[%emt 00:00:05]} 25. Kf1 {[%clk 00:01:51]}
{[%emt 00:00:09]} Qc4+ {[%clk 00:10:26]} {[%emt 00:00:28]} 26. Kg2 {[%clk
00:02:03]} {[%emt 00:00:18]} Qxc5 {[%clk 00:08:24]} {[%emt 00:02:32]} 27. Rd5
{[%clk 00:01:33]} {[%emt 00:01:01]} Qxc7 {[%clk 00:08:45]} {[%emt 00:00:09]} 28.
Rexe5 {[%clk 00:01:52]} {[%emt 00:00:10]} Qc6 {[%clk 00:07:38]} {[%emt
00:01:38]} 29. Kg3 {[%clk 00:01:49]} {[%emt 00:00:34]} f6 {[%clk 00:05:28]}
{[%emt 00:02:40]} 30. Rd8+ {[%clk 00:02:03]} {[%emt 00:00:15]} Kf7 {[%clk
00:05:43]} {[%emt 00:00:12]} 31. Red5 {[%clk 00:02:14]} {[%emt 00:00:24]} Ke7
{[%clk 00:05:30]} {[%emt 00:00:40]} 32. Kh3 {[%clk 00:01:55]} {[%emt 00:00:51]}
h5 {[%clk 00:04:28]} {[%emt 00:01:31]} 33. Rd2 {[%clk 00:02:07]} {[%emt
00:00:18]} g5 {[%clk 00:04:13]} {[%emt 00:00:46]} 34. R8d3 {[%clk 00:02:07]}
{[%emt 00:00:30]} Qh1+ {[%clk 00:04:11]} {[%emt 00:00:32]} 35. Kg3 {[%clk
00:02:33]} {[%emt 00:00:03]} Qg1+ {[%clk 00:04:07]} {[%emt 00:00:35]} 36. Kf3
{[%clk 00:02:27]} {[%emt 00:00:35]} Qg4+ {[%clk 00:03:10]} {[%emt 00:01:27]} 37.
Ke3 {[%clk 00:02:53]} {[%emt 00:00:04]} h4 {[%clk 00:02:13]} {[%emt 00:01:27]}
38. Rd4 {[%clk 00:02:56]} {[%emt 00:00:27]} Qf5 {[%clk 00:01:53]} {[%emt
00:00:49]} 39. f3 {[%clk 00:02:55]} {[%emt 00:00:33]} h3 {[%clk 00:01:19]}
{[%emt 00:01:02]} 40. Kf2 {[%clk 00:01:28]} {[%emt 00:01:57]} Kf7 {[%clk
00:01:09]} {[%emt 00:00:41]} 41. Kg3 {[%clk 00:01:32]} {[%emt 00:00:27]} Kg6
{[%clk 00:28:26]} {[%emt 00:03:12]} 42. Re4 {[%clk 00:27:48]} {[%emt 00:04:13]}
Qc8 {[%clk 00:24:51]} {[%emt 00:04:05]} 43. a3 {[%clk 00:25:18]} {[%emt
00:03:02]} Qc1 {[%clk 00:17:28]} {[%emt 00:07:51]} 44. Ree2 {[%clk 00:22:54]}
{[%emt 00:02:55]} f5 {[%clk 00:13:00]} {[%emt 00:04:56]} 45. Kh2 {[%clk
00:17:23]} {[%emt 00:06:00]} Qf1 {[%clk 00:07:37]} {[%emt 00:05:54]} 46. Rf2
{[%clk 00:16:39]} {[%emt 00:01:15]} Qb1 {[%clk 00:05:58]} {[%emt 00:02:10]} 47.
Rfe2 {[%clk 00:15:25]} {[%emt 00:01:44]} Qc1 {[%clk 00:04:01]} {[%emt
00:02:27]} 48. Rf2 {[%clk 00:09:41]} {[%emt 00:06:14]} Kh5 {[%clk 00:03:31]}
{[%emt 00:01:00]} 49. Rd7 {[%clk 00:06:53]} {[%emt 00:03:18]} Qe3 {[%clk
00:02:30]} {[%emt 00:01:28]} 50. Rdd2 {[%clk 00:05:58]} {[%emt 00:01:28]} Kh4
{[%clk 00:02:04]} {[%emt 00:00:56]} 51. Rde2 {[%clk 00:05:55]} {[%emt
00:00:34]} Qf4+ {[%clk 00:02:29]} {[%emt 00:00:04]} 52. Kh1 {[%clk 00:06:01]}
{[%emt 00:00:25]} Kg3 {[%clk 00:01:25]} {[%emt 00:01:32]} 53. Rf1 {[%clk
00:05:52]} {[%emt 00:00:40]} Kh4 {[%clk 00:01:17]} {[%emt 00:00:38]} 54. Ref2
{[%clk 00:05:05]} {[%emt 00:01:18]} g4 {[%clk 00:00:51]} {[%emt 00:00:56]} 55.
fxg4 {[%clk 00:04:27]} {[%emt 00:01:07]} Qe4+ {[%clk 00:01:20]} {[%emt
00:00:01]} 56. Kg1 {[%clk 00:04:10]} {[%emt 00:00:47]} fxg4 {[%clk 00:01:46]}
{[%emt 00:00:04]} 57. Rc1 {[%clk 00:02:19]} {[%emt 00:02:18]} g3 {[%clk
00:01:42]} {[%emt 00:00:36]} 58. Rfc2 {[%clk 00:01:50]} {[%emt 00:01:00]} h2+
{[%clk 00:01:58]} {[%emt 00:00:14]} 0-1

[Event "Schack-SM 2024: Mastarklassen-elit"]
[Site "Fortnox Arena, Hejaregatan 5, Vaxjo, Sweden"]
[Date "2024.07.03"]
[Round "5.3"]
[White "Cederstam, Carl"]
[Black "Arman, Deniz"]
[Result "0-1"]
[TimeControl "90 minutes for 40 moves + 30 minutes for the rest of the game + 30 seconds per move from move one."]
[WhiteTitle "FM"]
[BlackTitle "FM"]
[WhiteElo "2278"]
[BlackElo "2343"]

1. Nf3 {[%clk 01:30:59]} Nf6 {[%clk 01:24:34]} {[%emt 00:06:27]} 2. d4 {[%clk
01:30:49]} {[%emt 00:00:40]} g6 {[%clk 01:24:47]} {[%emt 00:00:16]} 3. c4
{[%clk 01:30:44]} {[%emt 00:00:34]} Bg7 {[%clk 01:15:13]} {[%emt 00:10:05]} 4.
e3 {[%clk 01:30:13]} {[%emt 00:01:00]} O-O {[%clk 01:12:48]} {[%emt 00:02:56]}
5. Be2 {[%clk 01:30:29]} {[%emt 00:00:13]} c5 {[%clk 01:00:59]} {[%emt
00:12:19]} 6. d5 {[%clk 01:28:35]} {[%emt 00:02:23]} b5 {[%clk 00:58:13]}
{[%emt 00:03:17]} 7. cxb5 {[%clk 01:28:32]} {[%emt 00:00:33]} a6 {[%clk
00:58:29]} {[%emt 00:00:13]} 8. O-O {[%clk 01:19:52]} {[%emt 00:09:08]} axb5
{[%clk 00:56:32]} {[%emt 00:02:29]} 9. Bxb5 {[%clk 01:19:51]} {[%emt 00:00:31]}
Qb6 {[%clk 00:54:50]} {[%emt 00:02:13]} 10. Bc4 {[%clk 01:17:26]} {[%emt
00:02:53]} Ba6 {[%clk 00:52:09]} {[%emt 00:03:12]} 11. Nfd2 {[%clk 01:09:52]}
{[%emt 00:08:04]} d6 {[%clk 00:50:15]} {[%emt 00:02:24]} 12. a4 {[%clk
00:58:13]} {[%emt 00:12:08]} Nbd7 {[%clk 00:46:55]} {[%emt 00:03:51]} 13. a5
{[%clk 00:56:48]} {[%emt 00:01:56]} Qb7 {[%clk 00:45:46]} {[%emt 00:01:37]} 14.
Nc3 {[%clk 00:55:22]} {[%emt 00:01:57]} Ne5 {[%clk 00:45:28]} {[%emt 00:00:48]}
15. b3 {[%clk 00:47:38]} {[%emt 00:08:14]} Nxc4 {[%clk 00:41:10]} {[%emt
00:04:49]} 16. bxc4 {[%clk 00:31:50]} Nxd5 {[%clk 00:40:40]} {[%emt 00:17:17]}
17. Nxd5 {[%clk 00:32:15]} {[%emt 00:00:06]} Bxa1 {[%clk 00:40:21]} {[%emt
00:00:49]} 18. Qa4 {[%clk 00:32:32]} {[%emt 00:00:13]} Bg7 {[%clk 00:35:32]}
{[%emt 00:05:19]} 19. Ne4 {[%clk 00:32:43]} {[%emt 00:00:20]} Ra7 {[%clk
00:32:34]} {[%emt 00:03:28]} 20. f4 {[%clk 00:26:18]} {[%emt 00:06:53]} Qb1
{[%clk 00:24:53]} {[%emt 00:08:12]} 21. Ng3 {[%clk 00:26:13]} {[%emt 00:00:34]}
e6 {[%clk 00:22:40]} {[%emt 00:02:46]} 22. Nb6 {[%clk 00:23:25]} {[%emt
00:03:17]} Qb4 {[%clk 00:20:36]} {[%emt 00:02:33]} 23. Qa2 {[%clk 00:22:28]}
{[%emt 00:01:28]} Bb7 {[%clk 00:20:06]} {[%emt 00:01:00]} 24. Qe2 {[%clk
00:21:25]} {[%emt 00:01:32]} Qxa5 {[%clk 00:19:35]} {[%emt 00:01:01]} 25. Bb2
{[%clk 00:19:12]} {[%emt 00:02:42]} Qxb6 {[%clk 00:18:15]} {[%emt 00:01:50]} 26.
Bxg7 {[%clk 00:19:36]} {[%emt 00:00:07]} Kxg7 {[%clk 00:18:34]} {[%emt
00:00:10]} 27. Qg4 {[%clk 00:19:28]} {[%emt 00:00:38]} Qb2 {[%clk 00:18:35]}
{[%emt 00:00:29]} 28. e4 {[%clk 00:19:26]} {[%emt 00:00:31]} Ra2 {[%clk
00:17:34]} {[%emt 00:01:31]} 29. Nh5+ {[%clk 00:19:00]} {[%emt 00:00:56]} Kh8
{[%clk 00:17:52]} {[%emt 00:00:11]} 30. h4 {[%clk 00:18:58]} {[%emt 00:00:34]}
gxh5 {[%clk 00:17:38]} {[%emt 00:00:43]} 31. Qg3 {[%clk 00:18:41]} {[%emt
00:00:47]} Rg8 {[%clk 00:17:48]} {[%emt 00:00:20]} 32. Rf3 {[%clk 00:18:59]}
{[%emt 00:00:14]} Rxg3 {[%clk 00:17:12]} {[%emt 00:01:06]} 33. Rxg3 {[%clk
00:19:27]} {[%emt 00:00:01]} Bxe4 {[%clk 00:17:14]} {[%emt 00:00:27]} 34. f5
{[%clk 00:19:53]} {[%emt 00:00:06]} Qf2+ {[%clk 00:17:05]} {[%emt 00:00:39]} 35.
Kh2 {[%clk 00:20:16]} {[%emt 00:00:06]} Bxg2 {[%clk 00:17:22]} {[%emt
00:00:12]} 36. f6 {[%clk 00:19:21]} {[%emt 00:01:27]} Bf3+ {[%clk 00:17:42]}
{[%emt 00:00:09]} 37. Rg2 {[%clk 00:19:20]} {[%emt 00:00:31]} Qxg2# {[%clk
00:17:28]} {[%emt 00:00:07]} 0-1